bitfinex/quotes_ETHUSD_20241212
["timestamp","ask_amount","ask_price","bid_price","bid_amount"]
[1733978707932,5.29712292,3907.7,3907.0,1.79164]
[1733978708132,0.24044345,3907.1,3907.0,1.79165]
[1733978708532,0.24044345,3907.1,3907.0,1.970815]
[1733978708533,0.03360793,3907.1,3907.0,1.970815]
[1733978708757,0.24044345,3907.8,3907.4,1.79147]
[1733978708961,0.24044345,3908.0,3907.6,1.79138]
[1733978709119,0.24044345,3908.0,3907.9,1.79124]
[1733978711166,0.25,3908.1,3907.9,1.79124]
[1733978711562,0.7702,3908.5,3908.2,1.7911]
[1733978711563,0.25,3908.3,3908.2,1.7911]
[1733978711881,0.25,3908.7,3908.6,1.79092]
[1733978712097,0.49044345,3908.9,3908.8,1.79083]
[1733978712441,0.24044345,3908.9,3908.8,1.79083]
[1733978712942,0.25,3909.1,3909.0,1.79073]
[1733978713339,0.24044345,3908.9,3908.7,1.79083]
[1733978714592,0.24044345,3908.9,3908.7,2.62093]
[1733978714881,0.24044345,3908.9,3908.8,3.0]
[1733978715443,0.25,3909.1,3908.9,1.79078]
[1733978715444,0.24044345,3909.0,3908.9,1.79078]
[1733978718096,0.24044345,3909.4,3909.2,1.79063]
[1733978718459,0.28376358,3909.3,3909.2,1.79063]
[1733978718786,0.25,3909.3,3909.2,1.79063]
[1733978719488,0.24044345,3909.4,3909.2,2.148767]
[1733978719693,0.24044345,3909.4,3909.3,0.8301]
[1733978719985,0.24044345,3909.4,3909.3,3.8301]
[1733978720556,0.8213,3910.0,3909.6,1.79046]
[1733978720557,0.25,3909.8,3909.6,1.79046]
[1733978720862,0.24044345,3909.9,3909.8,1.79037]
[1733978721977,0.255671,3911.2,3909.8,1.79037]
[1733978721978,0.24044345,3910.3,3910.2,1.79018]
[1733978722548,0.49044345,3910.3,3910.2,1.79018]
[1733978723453,0.49044345,3910.3,3910.0,1.79026]
[1733978723677,0.49044345,3910.1,3909.6,0.93971796]
[1733978723996,0.24044345,3909.6,3909.3,2.83439687]
[1733978724153,0.24044345,3909.6,3909.4,1.79054]
[1733978725086,0.25,3909.7,3909.6,1.79046]
[1733978725301,0.25,3909.7,3909.5,1.79051]
[1733978725481,0.25,3909.7,3909.6,1.79042]
[1733978726187,0.49044345,3909.9,3909.7,1.79037]
[1733978728095,0.25,3910.2,3910.0,1.79023]
[1733978730718,0.24044345,3909.8,3909.3,2.57879]
[1733978730878,0.49044345,3909.6,3909.0,0.12990231]
[1733978731070,0.49044345,3909.6,3909.1,3.0]
[1733978731370,0.24044345,3909.1,3908.7,2.83439687]
[1733978731570,0.24044345,3909.1,3908.9,1.79077]
[1733978734477,0.49044345,3909.1,3908.9,1.79077]
[1733978735918,0.24044345,3908.9,3908.7,2.83439687]
[1733978736085,0.25,3908.4,3908.3,2.83439687]
[1733978736286,0.49044345,3908.0,3907.9,2.83439687]
[1733978736690,0.52430674,3908.0,3907.9,2.83439687]
[1733978737107,0.52430674,3908.0,3907.5,2.83439687]
[1733978737419,0.24044345,3907.4,3907.2,1.79153]
[1733978737583,0.25,3907.3,3907.2,1.79153]
[1733978738629,0.25,3907.3,3907.2,2.25412269]
[1733978739137,0.24044345,3907.4,3907.2,2.25412269]
[1733978739316,0.25,3907.3,3907.2,2.25412269]
[1733978741513,0.24044345,3907.4,3907.2,2.25412269]
[1733978741714,0.25,3907.3,3907.2,2.25412269]
[1733978743383,0.24044345,3907.4,3907.2,2.25412269]
[1733978743583,0.25,3907.3,3907.2,2.25412269]
[1733978743835,0.24044345,3907.4,3907.2,2.25412269]
[1733978744132,0.25,3907.5,3907.4,1.79147]
[1733978744280,0.25,3907.7,3907.6,1.79138]
[1733978745215,0.49044345,3907.7,3907.6,1.79138]
[1733978745412,0.25,3907.7,3907.6,1.79138]
[1733978745699,0.25,3907.7,3907.6,5.63491769]
[1733978746016,0.25,3907.7,3907.6,1.79138]
[1733978749822,0.24044345,3907.1,3907.0,2.83439687]
[1733978750021,0.25,3907.1,3907.0,4.62601687]
[1733978750179,0.25,3907.3,3907.0,4.62601687]
[1733978750382,0.25,3907.1,3907.0,4.62601687]
[1733978750882,0.25,3907.3,3907.2,1.79156]
[1733978751282,0.25,3907.5,3907.4,1.79147]
[1733978751523,0.25,3907.5,3907.4,8.43546687]
[1733978751909,0.25,3908.0,3907.9,1.79124]
[1733978752108,0.25,3908.0,3907.9,4.62563687]
[1733978753143,0.7895,3908.4,3907.9,4.62563687]
[1733978753144,0.25,3908.4,3908.1,1.79115]
[1733978753423,0.24044345,3908.5,3908.1,1.79115]
[1733978753424,0.25,3908.2,3908.1,4.79115]
[1733978753725,0.24044345,3908.7,3908.3,4.79106]
[1733978753914,0.24044345,3908.7,3908.5,1.79096]
[1733978754226,0.25,3908.6,3908.5,1.79096]
[1733978757167,0.49044345,3908.6,3908.5,1.79096]
[1733978759244,0.49044345,3908.6,3908.4,3.0]
[1733978759444,0.7707,3908.9,3907.9,1.54854068]
[1733978759445,0.25,3908.1,3908.0,1.79117]
[1733978759628,0.25,3908.1,3908.0,4.79117]
[1733978759829,0.25,3908.1,3908.0,1.79117]
[1733978762072,0.25,3908.1,3907.9,2.83439687]
[1733978762372,1.01114345,3908.0,3907.9,2.83439687]
[1733978762678,1.01114345,3908.0,3907.3,0.756]
[1733978762679,0.25,3907.6,3907.5,4.62578687]
[1733978763031,0.49044345,3907.6,3907.5,2.83439687]
[1733978763237,0.24044345,3907.2,3907.1,2.83439687]
[1733978763449,0.49044345,3907.2,3907.1,2.83439687]
[1733978764285,0.52335017,3907.2,3907.1,2.83439687]
[1733978764457,0.49044345,3907.2,3907.1,2.83439687]
[1733978765145,0.52335017,3907.2,3907.1,2.83439687]
[1733978765347,0.49044345,3907.2,3907.1,2.83439687]
[1733978774089,0.25,3906.9,3906.7,1.79175]
[1733978774284,0.7707,3907.4,3906.5,7.62624687]
[1733978774285,0.25,3906.7,3906.5,7.62624687]
[1733978774549,0.25,3906.9,3906.8,1.79174]
[1733978775188,0.25,3906.9,3906.0,1.60201615]
[1733978775189,0.7655,3906.1,3906.0,1.60201615]
[1733978775409,0.25,3905.8,3905.6,2.66708187]
[1733978775700,0.25,3905.8,3905.0,4.62694687]
[1733978775701,0.25,3904.9,3904.8,0.005]
[1733978776211,1.04614236,3904.9,3904.8,0.005]
[1733978776624,5.57306528,3904.9,3904.8,0.005]
[1733978776770,6.41049915,3904.9,3904.8,0.005]
[1733978777266,5.57306528,3904.9,3904.8,0.005]
[1733978777665,1.04614236,3904.9,3904.8,0.005]
[1733978778014,0.28064236,3904.9,3904.8,2.83939687]
[1733978778181,0.28064236,3904.9,3904.8,0.005]
[1733978778384,0.28064236,3904.9,3904.8,0.184773]
[1733978778704,0.28064236,3904.9,3904.8,3.184773]
[1733978779074,0.25,3904.9,3904.8,3.184773]
[1733978779274,0.25,3904.9,3904.8,0.184773]
[1733978783710,1.24434345,3904.2,3903.3,1.60201615]
[1733978783912,1.24434345,3904.2,3903.2,0.625]
[1733978784232,0.25,3903.3,3903.2,0.625]
[1733978784446,0.49044345,3903.3,3903.2,0.625]
[1733978784931,0.49044345,3903.3,3903.2,0.866844]
[1733978785864,0.25,3903.3,3903.2,0.625]
[1733978786158,0.49044345,3902.7,3902.6,0.1646087]
[1733978786514,0.51811785,3902.7,3902.6,0.1646087]
[1733978788272,1.27201785,3902.7,3902.6,0.1646087]
[1733978788565,0.51811785,3902.7,3902.6,0.1646087]
[1733978789957,0.51811785,3902.7,3902.6,0.7146087]
[1733978790346,0.49044345,3902.7,3902.6,3.7146087]
[1733978790547,1.24434345,3902.7,3902.6,0.1646087]
[1733978790911,0.51516968,3902.7,3902.6,0.1646087]
[1733978792161,0.49044345,3902.7,3902.6,0.1646087]
[1733978792476,5.77126637,3902.7,3902.6,0.1646087]
[1733978792620,1.82147009,3902.7,3902.6,0.1646087]
[1733978792821,1.26906968,3902.7,3902.6,0.1646087]
[1733978793719,0.02472623,3902.7,3902.6,0.1646087]
[1733978793971,6.23e-06,3902.7,3902.6,6.0989707]
[1733978794166,0.49044345,3903.1,3903.0,2.34349]
[1733978794375,0.49044345,3903.3,3903.2,2.3434]
[1733978794662,0.49044345,3903.3,3903.2,0.55]
[1733978794921,0.49044345,3903.3,3903.2,3.784342]
[1733978795227,0.49044345,3903.3,3903.2,0.55]
[1733978795519,0.49044345,3903.3,3903.1,1.79342]
[1733978795520,0.24044345,3902.7,3902.6,0.1646087]
[1733978795701,0.49044345,3902.7,3902.6,0.1646087]
[1733978796892,0.49044345,3902.7,3902.6,0.7146087]
[1733978797296,0.49044345,3902.7,3902.6,0.1646087]
[1733978797691,5.77126637,3902.7,3902.6,0.1646087]
[1733978797911,6.34839301,3902.7,3902.6,0.1646087]
[1733978798989,6.34839301,3902.7,3901.5,1.81085139]
[1733978798990,0.24044345,3901.6,3901.5,1.81085139]
[1733978799342,0.49044345,3901.6,3901.5,1.81085139]
[1733978799984,1.24434345,3901.6,3901.5,0.01667139]
[1733978800192,0.49044345,3901.6,3901.5,0.01667139]
[1733978800387,0.49044345,3901.8,3901.5,0.19776053]
[1733978800633,0.24044345,3902.4,3902.1,1.7939]
[1733978800783,0.24044345,3902.4,3902.3,1.79381]
[1733978801519,0.24044345,3902.4,3902.3,2.34381]
[1733978801719,0.24044345,3902.6,3902.5,1.79372]
[1733978802287,0.24044345,3902.6,3902.5,5.34372]
[1733978802801,0.24044345,3902.6,3902.5,2.34372]
[1733978803002,0.24044345,3902.6,3902.5,3.1365721]
[1733978803204,0.24044345,3902.6,3902.5,6.1365721]
[1733978805398,0.24044345,3903.1,3902.8,1.79358]
[1733978805598,2.56065,3905.3,3902.8,1.79358]
[1733978805599,0.24044345,3903.2,3903.1,3.55]
[1733978805845,0.24044345,3903.2,3903.1,4.98670477]
[1733978806739,0.24044345,3903.2,3903.1,3.55]
[1733978806941,0.24044345,3903.2,3903.1,0.55]
[1733978808850,0.24044345,3903.2,3903.0,1.79349]
[1733978809144,0.24044345,3903.2,3903.1,0.55]
[1733978809701,0.24044345,3903.4,3903.3,0.55]
[1733978810241,0.24044345,3903.4,3902.9,3.0]
[1733978810451,0.24044345,3903.1,3903.0,2.34347]
[1733978812416,0.24044345,3902.7,3902.6,4.79367]
[1733978812920,0.24044345,3902.7,3902.6,1.79367]
[1733978813875,0.24044345,3902.7,3902.6,2.34367]
[1733978814375,0.24044345,3902.7,3902.6,1.79367]
[1733978818332,0.24044345,3902.7,3902.6,5.63171241]
[1733978818886,0.24044345,3902.9,3902.8,1.79358]
[1733978821253,0.24044345,3902.9,3902.4,3.27593973]
[1733978821254,0.24044345,3902.9,3902.4,3.12897642]
[1733978821601,0.24044345,3902.9,3902.7,1.79361]
[1733978823702,0.24044345,3902.5,3902.4,1.79373]
[1733978824555,0.24044345,3902.5,3902.4,4.79373]
[1733978824759,0.24044345,3902.5,3902.4,6.09826977]
[1733978825201,0.24044345,3902.7,3902.6,1.79367]
[1733978825352,0.24044345,3902.9,3902.8,1.79358]
[1733978826204,0.24044345,3902.9,3902.7,1.79361]
[1733978826769,0.24044345,3903.1,3902.9,2.54689]
[1733978827120,0.24044345,3903.1,3903.0,3.0]
[1733978828008,0.23735872,3903.1,3903.0,3.0]
[1733978828784,0.23735872,3903.3,3903.1,1.79344]
[1733978830424,0.23735872,3903.0,3902.8,1.79354]
[1733978831325,0.23735872,3903.0,3902.7,3.0]
[1733978831491,0.23735872,3902.6,3902.5,7.63893057]
[1733978834202,0.23735872,3902.6,3902.0,2.13805652]
[1733978834203,0.23735872,3902.1,3902.0,1.06393856]
[1733978834532,0.23735872,3901.6,3901.5,0.01667139]
[1733978835215,0.23735872,3901.8,3901.6,1.79413]
[1733978835427,0.23735872,3901.8,3901.5,1.08060995]
[1733978835572,0.23735872,3901.6,3901.5,1.81082139]
[1733978836167,0.7621,3902.5,3901.7,1.79408]
[1733978836168,0.23735872,3901.8,3901.7,1.79408]
[1733978836803,0.23735872,3902.0,3901.9,1.79399]
[1733978837021,0.23735872,3902.2,3902.1,1.7939]
[1733978837733,0.7621,3902.1,3902.0,1.06393856]
[1733978837887,0.23735872,3901.8,3901.7,4.79407]
[1733978838304,0.23735872,3901.6,3901.5,1.81083139]
[1733978838509,0.23735872,3901.6,3901.5,0.01667139]
[1733978845515,0.23735872,3901.6,3901.5,3.78358439]
[1733978845685,0.23735872,3901.8,3901.6,1.79413]
[1733978845890,0.23735872,3901.8,3901.6,4.79413]
[1733978846627,0.23735872,3902.1,3902.0,4.79395]
[1733978849228,4.52692292,3903.2,3902.0,4.79395]
[1733978849229,0.23735872,3902.5,3902.2,1.79385]
[1733978849439,0.23735872,3902.5,3902.4,1.79376]
[1733978851726,0.23735872,3902.7,3902.6,1.79367]
[1733978852096,0.23735872,3902.9,3902.8,4.79358]
[1733978852585,0.23735872,3902.9,3902.8,1.79358]
[1733978853296,0.23735872,3902.9,3902.8,5.55869886]
[1733978853698,0.8306,3903.6,3902.8,5.55869886]
[1733978853699,0.23735872,3903.1,3903.0,1.79349]
[1733978855524,0.23735872,3903.1,3902.5,4.7937]
[1733978855724,0.23735872,3902.6,3902.5,4.7937]
[1733978856060,0.23735872,3902.6,3902.5,6.07981878]
[1733978856420,0.23735872,3902.6,3902.5,7.14375734]
[1733978856622,0.8306,3903.6,3902.7,1.79363]
[1733978856623,0.23735872,3902.8,3902.7,1.79363]
[1733978857072,0.23735872,3903.0,3902.9,2.59433]
[1733978857255,0.23735872,3903.0,3902.9,5.59433]
[1733978857624,0.23735872,3903.0,3902.9,6.66428849]
[1733978858182,0.23735872,3903.2,3903.1,1.79344]
[1733978862787,0.23735872,3903.2,3903.1,4.79344]
[1733978863033,0.23735872,3903.2,3903.1,5.75985985]
[1733978864622,0.23735872,3903.4,3903.3,1.79335]
[1733978864827,0.23735872,3903.4,3903.3,10.93646133]
[1733978865140,0.23735872,3903.4,3903.3,9.89934133]
[1733978865360,0.23735872,3903.4,3903.3,7.63874833]
[1733978865494,0.23735872,3903.4,3903.3,9.02588661]
[1733978866221,0.23735872,3903.4,3903.3,9.17317257]
[1733978871258,0.23735872,3903.4,3903.3,9.72317257]
[1733978871756,0.231149,3903.4,3903.3,7.63874833]
[1733978871926,0.8306,3903.6,3902.9,2.84539833]
[1733978871927,0.231149,3903.0,3902.9,2.84539833]
[1733978872261,0.231149,3902.7,3902.6,1.79367]
[1733978872559,0.231149,3902.7,3902.5,2.84539833]
[1733978872853,0.231149,3902.7,3902.6,1.79367]
[1733978873211,0.231149,3902.7,3901.8,1.86175849]
[1733978873415,0.25,3904.2,3901.8,1.86175849]
[1733978873416,0.231149,3902.2,3902.1,1.7939]
[1733978874875,0.231149,3902.2,3901.8,4.63942833]
[1733978875385,0.231149,3902.2,3901.8,2.84539833]
[1733978875577,0.231149,3902.2,3901.9,1.79398]
[1733978876754,0.231149,3902.2,3901.8,2.84539833]
[1733978876954,0.231149,3902.2,3902.0,1.79394]
[1733978880296,0.231149,3902.2,3902.1,3.0]
[1733978881498,9e-06,3902.2,3902.1,3.0]
[1733978881701,0.7837,3903.0,3902.7,1.79358]
[1733978881900,0.7837,3903.0,3902.8,1.79356]
[1733978884069,5.31062292,3903.9,3902.9,2.84539833]
[1733978884410,0.7837,3903.9,3903.7,1.79315]
[1733978884901,0.7837,3904.8,3903.8,1.79308]
[1733978885113,5.31062292,3904.8,3903.8,1.79308]
[1733978885263,5.31062292,3904.8,3903.9,1.79307]
[1733978885455,5.31062292,3904.8,3903.7,1.79316]
[1733978885654,0.7837,3904.6,3903.7,1.79316]
[1733978886000,0.7837,3904.6,3903.8,1.79312]
[1733978886563,0.7837,3904.6,3904.0,1.79303]
[1733978887207,0.7837,3904.6,3903.4,3.0]
[1733978887208,0.7837,3904.6,3903.8,1.79311]
[1733978887703,0.7837,3904.6,3904.1,2.84539833]
[1733978887886,0.7837,3904.6,3904.4,1.79283]
[1733978888093,0.7902,3905.4,3904.2,1.79294]
[1733978888287,0.7902,3905.4,3904.1,2.84539833]
[1733978888288,0.7902,3905.4,3904.1,4.63834833]
[1733978888598,4.77692292,3905.9,3904.1,4.63834833]
[1733978888599,0.7902,3905.3,3904.2,1.79293]
[1733978888803,0.7902,3905.3,3904.3,1.79288]
[1733978889398,0.7902,3905.3,3904.4,1.79283]
[1733978890286,0.7902,3905.3,3904.5,1.79279]
[1733978890531,0.7902,3905.3,3904.8,1.79262]
[1733978890729,0.7902,3905.3,3904.7,1.79269]
[1733978890916,0.7902,3905.3,3904.9,2.84539833]
[1733978892730,0.7902,3905.3,3904.9,4.63797833]
[1733978892974,0.7902,3905.3,3904.9,2.84539833]
[1733978893836,0.7902,3905.3,3904.6,3.0]
[1733978894531,0.7902,3905.3,3903.8,3.39512615]
[1733978894532,0.7902,3905.3,3904.2,3.0]
[1733978894832,0.7902,3905.0,3903.7,4.63852833]
[1733978895005,4.52692292,3905.1,3903.7,2.84539833]
[1733978895206,0.7902,3904.7,3903.7,2.84539833]
[1733978895616,2.56098,3904.8,3903.7,2.84539833]
[1733978895617,0.7902,3904.5,3903.7,2.84539833]
[1733978895941,5.34101121,3904.4,3903.7,2.84539833]
[1733978896097,0.79021012,3904.3,3903.7,2.84539833]
[1733978896291,0.02387401,3904.2,3903.7,2.84539833]
[1733978897504,5.31712292,3904.4,3903.7,2.84539833]
[1733978897820,0.02388115,3904.3,3903.7,4.63855833]
[1733978898334,0.02388115,3904.3,3903.7,2.84539833]
[1733978898545,0.02388115,3904.3,3904.1,2.84539833]
[1733978898836,5.31712292,3904.4,3903.8,3.0]
[1733978899191,0.02388115,3904.3,3903.8,3.0]
[1733978899400,0.02388115,3904.3,3903.7,2.84539833]
[1733978899690,0.53410041,3904.3,3903.7,2.84539833]
[1733978899893,0.02387401,3904.2,3903.7,2.84539833]
[1733978900331,0.53410041,3904.3,3903.7,2.84539833]
[1733978900493,0.53410041,3904.3,3903.2,4.79336]
[1733978900494,0.53410041,3904.3,3903.4,3.0]
[1733978900697,0.02387401,3904.2,3903.4,3.0]
[1733978900920,0.7902,3904.1,3903.4,3.0]
[1733978901246,0.61138374,3904.2,3902.9,2.84539833]
[1733978901247,0.7902,3903.9,3902.9,2.84539833]
[1733978901741,0.02341977,3903.8,3902.9,2.84539833]
[1733978902830,4.52692292,3903.5,3902.5,2.84539833]
[1733978903002,1.53896829,3903.4,3902.5,2.84539833]
[1733978903203,1.53896829,3903.4,3902.5,4.63910833]
[1733978903605,1.53896829,3903.4,3902.5,2.84539833]
[1733978905198,0.8301,3903.3,3902.5,2.84539833]
[1733978905428,0.8301,3903.3,3902.3,1.79379]
[1733978905625,0.86277012,3903.2,3902.0,5.84539833]
[1733978905826,0.86277012,3903.2,3902.0,1.79393]
[1733978905827,0.8301,3903.1,3902.0,1.79393]
[1733978906346,0.8301,3903.0,3901.8,1.79403]
[1733978906732,0.8301,3903.0,3901.7,0.54372397]
[1733978906733,0.8301,3903.0,3901.9,1.79398]
[1733978907027,0.8301,3903.0,3902.0,1.79393]
[1733978907211,0.8301,3903.0,3901.7,0.54372397]
[1733978907212,0.8301,3903.0,3902.1,1.7939]
[1733978907698,0.8301,3903.0,3902.4,1.79376]
[1733978908142,0.8301,3903.0,3902.2,1.79383]
[1733978909257,0.8301,3903.0,3901.5,2.86206972]
[1733978909463,0.8301,3903.0,3901.9,1.79395]
[1733978909676,0.8301,3903.0,3902.0,1.79394]
[1733978909975,0.8301,3903.0,3901.7,3.20093391]
[1733978910182,0.8301,3903.0,3902.2,1.79385]
[1733978910646,0.8301,3903.0,3901.7,3.20093391]
[1733978910851,0.8301,3903.0,3901.9,1.79395]
[1733978911295,0.8301,3903.0,3901.9,4.79395]
[1733978911869,0.8301,3903.0,3902.0,1.79394]
[1733978913150,0.8301,3903.0,3901.8,0.86380936]
[1733978913504,0.8301,3903.0,3901.7,0.20093391]
[1733978913683,0.8301,3903.0,3901.9,1.79398]
[1733978914264,0.8301,3903.0,3902.0,1.79394]
[1733978914950,0.8301,3903.0,3902.1,1.7939]
[1733978915152,0.8301,3903.0,3902.0,3.0]
[1733978915383,0.8301,3903.0,3902.1,0.58453983]
[1733978915616,0.8301,3903.0,3902.0,4.79394]
[1733978915812,0.8301,3903.0,3902.0,3.0]
[1733978916386,0.8301,3903.0,3902.4,1.79375]
[1733978916783,0.8301,3903.0,3902.0,3.0]
[1733978916985,0.8301,3903.0,3902.2,1.79385]
[1733978917617,0.8301,3903.0,3902.0,2.99385]
[1733978918394,0.8301,3903.0,3902.3,1.7938]
[1733978918593,0.8301,3903.0,3902.4,1.79375]
[1733978919443,0.8301,3903.0,3902.0,3.61085628]
[1733978919609,0.8301,3903.0,3902.5,1.79371]
[1733978920335,0.8301,3903.0,3902.2,1.79381]
[1733978921225,0.8301,3903.0,3902.3,1.7938]
[1733978921705,0.8301,3903.0,3902.4,3.02562323]
[1733978921906,0.7749,3903.4,3902.9,1.79353]
[1733978922104,0.7749,3903.4,3902.7,1.79361]
[1733978922750,0.7749,3903.4,3902.4,3.0]
[1733978922917,0.7749,3903.4,3903.0,1.79349]
[1733978923131,0.7749,3903.4,3903.1,1.79344]
[1733978923320,4.52692292,3904.3,3903.1,1.79344]
[1733978923524,0.7749,3904.2,3903.3,1.79335]
[1733978923724,0.7749,3904.2,3902.8,4.79358]
[1733978923725,1.30508229,3904.2,3903.4,1.7933]
[1733978923937,1.30508229,3904.2,3903.5,1.79324]
[1733978924109,0.7749,3904.2,3903.5,1.79324]
[1733978924731,0.7749,3904.2,3903.1,3.0]
[1733978925055,0.7749,3904.2,3903.3,1.79335]
[1733978925627,0.7749,3904.2,3903.1,3.0]
[1733978925830,0.7749,3904.2,3902.9,1.79353]
[1733978925831,0.7749,3904.1,3902.9,1.79353]
[1733978926022,0.7749,3903.9,3902.9,1.79353]
[1733978926358,0.7749,3903.9,3902.8,3.0]
[1733978927152,0.7749,3903.9,3902.8,4.79356]
[1733978927348,2.56154,3903.9,3902.8,3.0]
[1733978927547,0.7749,3903.8,3902.8,4.79358]
[1733978927751,0.7749,3903.8,3902.9,1.79353]
[1733978927968,1.108531,3903.8,3902.9,1.79353]
[1733978928440,0.7749,3903.7,3902.8,3.0]
[1733978928665,0.7749,3903.7,3902.7,4.63900833]
[1733978928981,0.7749,3903.7,3902.8,1.79358]
[1733978929137,1.59459539,3903.7,3902.8,1.79358]
[1733978929736,1.59459539,3903.7,3902.7,2.84539833]
[1733978930483,1.59459539,3903.7,3903.0,1.79347]
[1733978930985,1.59459539,3903.7,3902.7,2.84539833]
[1733978931187,0.7749,3903.7,3902.7,2.84539833]
[1733978931388,0.7749,3903.7,3902.9,1.79352]
[1733978931593,0.7749,3903.7,3902.7,4.63901833]
[1733978931755,2.56114,3904.6,3902.4,1.79372]
[1733978931756,4.76253469,3903.9,3902.4,1.79372]
[1733978931959,4.76253469,3903.9,3902.0,5.84539833]
[1733978931960,2.56182,3903.5,3902.2,1.79385]
[1733978932156,0.23557132,3903.4,3902.2,1.79385]
[1733978932550,0.4711391,3903.4,3902.2,1.79385]
[1733978932865,0.23556778,3903.4,3902.3,1.79381]
[1733978933075,0.23556778,3903.4,3902.0,2.84539833]
[1733978933076,0.30329591,3903.3,3902.0,4.63933833]
[1733978933389,2.56169,3903.7,3902.4,1.79376]
[1733978933562,2.93868475,3903.7,3902.4,1.79376]
[1733978933745,0.23562159,3903.6,3902.4,1.79376]
[1733978934081,1.00574452,3903.5,3902.4,1.79376]
[1733978934282,0.77012293,3903.5,3902.4,1.79376]
[1733978934978,0.4156,3903.4,3902.4,1.79376]
[1733978935179,0.4156,3903.4,3902.5,1.79371]
[1733978935371,0.65119932,3903.4,3902.5,1.79371]
[1733978935578,0.65119932,3903.4,3902.5,3.179371]
[1733978935767,0.4156,3903.4,3902.5,3.179371]
[1733978935954,0.4156,3903.4,3902.9,1.79353]
[1733978936158,0.4156,3903.4,3903.1,1.79343]
[1733978936343,0.4156,3903.4,3902.5,3.179371]
[1733978936544,0.4156,3903.4,3902.6,1.79366]
[1733978937272,0.4156,3903.4,3902.5,3.0]
[1733978937582,0.4156,3903.4,3902.0,1.93211828]
[1733978937583,0.4156,3903.4,3902.0,4.63931833]
[1733978937784,0.4156,3903.2,3902.1,3.0]
[1733978938111,0.4156,3903.1,3902.1,3.0]
[1733978938383,0.77400466,3903.1,3902.1,3.0]
[1733978938588,0.4156,3903.0,3902.1,3.0]
[1733978939766,2.97773,3903.0,3901.8,1.79404]
[1733978940093,0.4156,3902.9,3901.8,1.79404]
[1733978940762,0.4156,3902.9,3901.9,1.79398]
[1733978940967,0.4156,3902.9,3901.9,4.79398]
[1733978941567,0.4156,3902.9,3902.0,1.79394]
[1733978942861,0.4156,3902.9,3902.1,1.7939]
[1733978943166,0.4156,3902.9,3901.9,4.79399]
[1733978943398,0.4156,3902.9,3901.9,5.77400535]
[1733978944006,0.4156,3902.9,3901.9,0.98001535]
[1733978944179,0.4156,3902.9,3901.9,3.0]
[1733978944573,0.4156,3902.9,3901.9,4.79398]
[1733978944757,0.4156,3902.9,3902.1,1.79389]
[1733978944962,0.4156,3902.9,3901.9,3.0]
[1733978945256,0.4156,3902.9,3901.9,0.96080396]
[1733978945469,0.4156,3902.9,3901.8,6.82474439]
[1733978945706,0.4156,3902.9,3901.9,4.79398]
[1733978945914,0.4156,3902.9,3901.8,0.9607759]
[1733978946106,0.4156,3902.9,3901.8,5.03073439]
[1733978946498,0.4156,3902.9,3902.1,1.79389]
[1733978946698,0.4156,3902.9,3902.0,3.0]
[1733978946927,0.4156,3902.9,3902.2,1.79385]
[1733978947941,0.4156,3902.9,3902.4,1.79375]
[1733978950214,0.4156,3902.9,3902.5,1.79371]
[1733978950416,0.4156,3902.9,3902.2,1.83185849]
[1733978950726,0.4156,3902.9,3902.2,2.19134995]
[1733978950932,0.4156,3902.9,3902.4,1.79375]
[1733978952404,0.41251543,3902.9,3902.4,1.79375]
[1733978953041,0.41251543,3902.9,3902.5,1.79372]
[1733978953227,0.41251543,3902.9,3902.6,0.179372]
[1733978953430,0.41251543,3902.9,3902.5,1.79372]
[1733978953806,0.41251543,3902.9,3902.2,3.22326995]
[1733978954003,0.41251543,3902.9,3902.2,1.42944995]
[1733978954347,0.41251543,3902.9,3902.1,4.06995849]
[1733978954348,0.41251543,3902.9,3902.1,3.0]
[1733978954554,0.41251543,3902.9,3902.1,4.06995849]
[1733978954700,0.41251543,3902.9,3902.1,5.86384849]
[1733978955043,0.41251543,3902.9,3902.1,4.79389]
[1733978955246,0.41251543,3902.9,3902.1,7.07949079]
[1733978955820,0.41251543,3902.9,3902.1,6.0095323]
[1733978956243,0.41251543,3902.9,3902.1,3.0095323]
[1733978956543,0.41251543,3902.9,3902.1,1.79389]
[1733978957203,0.41251543,3902.9,3902.0,1.06995849]
[1733978957543,0.41251543,3902.9,3901.9,5.86393849]
[1733978958039,0.41251543,3902.9,3901.9,1.79398]
[1733978958749,0.4125,3902.8,3901.9,1.79398]
[1733978959515,0.4125,3902.8,3902.1,1.79389]
[1733978960349,0.4125,3902.8,3902.0,1.79394]
[1733978961110,0.4125,3902.8,3901.8,1.06995849]
[1733978961447,0.4125,3902.8,3901.7,5.86403849]
[1733978961650,0.4125,3902.8,3901.8,1.79403]
[1733978962158,0.4125,3902.8,3901.9,1.79399]
[1733978963220,0.90644229,3902.7,3901.9,1.79399]
[1733978963420,0.90644229,3902.7,3901.9,1.34000446]
[1733978964439,0.4125,3902.7,3901.9,1.34000446]
[1733978964648,0.4125,3902.7,3902.2,1.34000446]
[1733978965158,0.4125,3902.7,3902.2,3.13385446]
[1733978966422,0.4125,3902.7,3902.4,1.79375]
[1733978966613,4.93942292,3903.0,3902.7,1.79359]
[1733978966814,4.93942292,3903.8,3902.8,1.34000446]
[1733978967028,0.23578308,3903.7,3902.8,1.34000446]
[1733978967234,0.23578308,3903.6,3902.8,1.34000446]
[1733978967428,0.23578308,3903.5,3902.8,3.13358446]
[1733978967659,4.52692292,3903.6,3902.8,3.13358446]
[1733978969149,4.52692292,3903.6,3902.8,1.34000446]
[1733978969352,4.52692292,3903.6,3903.0,1.79347]
[1733978970629,0.4125,3903.8,3903.0,1.79347]
[1733978970830,0.4125,3903.8,3902.8,1.34000446]
[1733978971021,0.93000331,3903.8,3902.6,1.06995849]
[1733978971225,0.4125,3903.6,3902.6,1.34000446]
[1733978971536,0.4125,3903.6,3902.6,3.13366446]
[1733978971721,0.4125,3903.6,3902.6,1.34000446]
[1733978971920,0.4125,3903.5,3902.2,2.86380849]
[1733978972149,0.4125,3903.3,3902.2,1.79385]
[1733978972351,0.4125,3903.3,3902.3,1.34000446]